Cogmind - Beta 17.1 @@@ ROGUE MODE // 2026.09.13 @ 22:58:01 Player: Matt Result: Core melted Performance ------------- Evolutions (1) 500 Regions Visited (2) 400 Robots Destroyed (34) 170 Value Destroyed (679) 679 Prototype IDs (2) 40 Alien Tech Used (0) 0 Bonus (0) 0 TOTAL SCORE: 1789 Bonus ------- None Cogmind --------- Core Integrity 0/400 Matter 249/300 Energy 274/280 System Corruption 5% Temperature Critical (553) Movement Walking (400) Ox4 Location -9/Materials Parts ------- > --- POWER (1) -------- Cooled Ion Engine > --- PROPULSION (3) --- Aluminum Leg > --- UTILITY (3) ------ Medium Storage Unit Large Storage Unit Terrain Scan Processor > --- WEAPON (2) ------- Particle Gun Beam Cannon > --- INVENTORY (15) --- Light Ion Engine Cooled Ion Engine Heat Sink Medium Storage Unit Medium Laser Peak State ------------ > --- POWER ------------ Ion Engine > --- PROPULSION ------- Carbon-fiber Leg Carbon-fiber Leg Carbon-fiber Leg > --- UTILITY ---------- Large Storage Unit Light Armor Plating Medium Armor Plating > --- WEAPON ----------- Medium Laser Beam Cannon > --- INVENTORY -------- Carbon-fiber Leg Medium Storage Unit Medium Storage Unit Large Storage Unit Improved Targeting Computer Improved Targeting Computer Medium Armor Plating EM Pulse Gun Medium Laser Medium Laser Medium Laser Medium Laser Medium Laser Heavy Assault Rifle [Rating: 18] Favorites ----------- Power Ion Engine Engine Ion Engine Propulsion Carbon-fiber Leg Leg Carbon-fiber Leg Utility Large Storage Unit Device Heat Sink Storage Large Storage Unit Processor Terrain Scan Processor Protection Medium Armor Plating Weapon Medium Laser Energy Gun Medium Laser Energy Cannon Beam Cannon Ballistic Gun Assault Rifle Build | -11 -10 -9 ------- Run | Yrd Mat Mat Slots Evolved 2 | . . 2 Power . | . . . Propulsion 1 | . . 1 Utility 1 | . . 1 Weapon . | . . . Parts Attached 37 | 7 1 29 Power 5 | 1 . 4 Engine 5 | 1 . 4 Core . | . . . Reactor . | . . . Propulsion 11 | 2 . 9 Treads . | . . . Leg 11 | 2 . 9 Wheel . | . . . Hover . | . . . Flight . | . . . Utility 13 | 1 1 11 Device 3 | . 1 2 Storage 4 | 1 . 3 Processor 3 | . . 3 Hackware . | . . . Protection 3 | . . 3 Artifact . | . . . Weapon 8 | 3 . 5 Energy Gun 6 | 2 . 4 Energy Cannon 1 | . . 1 Ballistic Gun 1 | 1 . . Ballistic Cannon . | . . . Launcher . | . . . Special Weapon . | . . . Impact Weapon . | . . . Slashing Weapon . | . . . Piercing Weapon . | . . . Special Melee Weapon . | . . . Unidentified Prototypes 2 | . . 2 Corrupted Parts 1 | . . 1 System Corruption 1 | . . 1 Parts Lost 13 | . . 13 Power 2 | . . 2 Propulsion 6 | . . 6 Utility 3 | . . 3 Weapon 2 | . . 2 Highest Loss Streak 6 | . . 6 To Critical Strikes . | . . . Average Backups 6 | . 2 7 Power . | . . . Propulsion 1 | . . 1 Utility 2 | . . 2 Weapon 2 | . 1 2 Tool/Special . | . . . Unused Backups 11 | . . 11 Power 1 | . . 1 Propulsion 2 | . . 2 Utility 4 | . . 4 Weapon 3 | . . 3 Tool/Special 1 | . . 1 Average Slot Usage (%) 84 | . 98 82 Engine 9 | . 14 8 Leg 28 | . 28 28 Device 6 | . 12 5 Storage 10 | . 14 9 Processor 4 | . . 4 Protection 5 | . . 6 Energy Gun 17 | . 28 15 Energy Cannon 3 | . . 3 Peak Build Rating 18 | 6 7 18 Average Rating 12 | 5 6 14 On Entrance 4 | . 6 7 Avg Prop Armor Cover (%) . | . . . Naked Turns 17 | . . 17 Heaviest Build 53 | 14 16 53 Greatest Support 45 | 20 20 45 Greatest Overweight (x) 3 | 3 . 3 Average Overweight (x) . | . . . Largest Inventory Capacity 15 | 8 8 15 Average Capacity 10 | 7 8 11 Most Carried 15 | 1 5 15 Average Carried 6 | . 2 7 Final Capacity 15 | 8 8 15 Final Carried 5 | 1 5 5 Class Distribution -------------------- 100% | Mutant Dominant Class ---------------- Mutant | -10/Materials Mutant | -9/Materials Resources | -11 -10 -9 ----------- Run | Yrd Mat Mat Matter Collected 688 | 255 25 408 Remotely . | . . . Salvage Created 1007 | . 87 920 Parts 69 | . 5 64 Haulers Intercepted 1 | . . 1 Recyclers Shooed 2 | . . 2 Parts Field Recycled . | . . . Retrieved Matter . | . . . Parts Self-Destructed . | . . . Prevented . | . . . Parts Restored . | . . . Kills | -11 -10 -9 ------- Run | Yrd Mat Mat Combat Hostiles Destroyed 21 | . 4 17 Guns 15 | . 4 11 Cannons 4 | . . 4 AOE 2 | . . 2 Classes Destroyed 8 | . 2 6 Worker 5 | . . 5 Builder 5 | . . 5 Hauler 1 | . . 1 Recycler 1 | . . 1 Watcher 1 | . . 1 Swarmer 7 | . 3 4 Grunt 11 | . 1 10 Sentry 3 | . . 3 Best Kill Streak 6 | . 3 6 Combat Bots Only 4 | . 3 4 Max Kills in Single Turn 3 | . 2 3 Gunslinging . | . . . Exploded 2 | . . 2 Melee . | . . . Uniques/NPCs Destroyed . | . . . Combat | -11 -10 -9 -------- Run | Yrd Mat Mat Hostile Shots Fired 206 | . 10 196 Missed 50 | . 3 47 Hits 156 | . 7 149 Projectile 156 | . 7 149 Critical Strikes 1 | . . 1 Damage Taken 2204 | . 77 2127 Core 471 | . 27 444 Absorbed by Shields . | . . . Core Remaining (%) 94 | 100 89 . Volleys Fired 102 | . 7 95 Largest 2 | . 2 2 Hottest 115 | . 100 115 Shots Fired 160 | . 14 146 Gun 128 | . 14 114 Cannon 32 | . . 32 Launcher . | . . . Special . | . . . Kinetic . | . . . Thermal 158 | . 14 144 Explosive . | . . . Electromagnetic 2 | . . 2 Robot Hit Streak 9 | . 4 9 Robot Miss Streak 3 | . 2 3 Penetration Max . | . . . Secondary Targets 2 | . . 2 Max Gunslinging Chain 1 | . . 1 Shots Hit Robots 105 | . 10 95 Core Hits 49 | . 5 44 Critical Kills . | . . . Critical Parts Destroyed . | . . . Critical Strikes 5 | . 1 4 Burn 5 | . 1 4 Melee Attacks . | . . . Impact . | . . . Slashing . | . . . Piercing . | . . . Sneak Attacks . | . . . Combat Hostiles . | . . . Follow-up Attacks . | . . . Damage Inflicted 1898 | . 138 1760 Guns 1222 | . 138 1084 Cannons 383 | . . 383 Explosions 238 | . . 238 Melee . | . . . Ramming 55 | . . 55 Kinetic . | . . . Thermal 1815 | . 138 1677 Explosive . | . . . Electromagnetic 28 | . . 28 Impact . | . . . Slashing . | . . . Piercing . | . . . Highest Corruption 5 | . . 5 Average Corruption 4 | . . 4 Corruption Purged . | . . . Corruption Blocked . | . . . Effects 14 | . . 14 Message Errors 1 | . . 1 Matter Fused 5 | . . 5 Heat Flow Errors 4 | . . 4 Energy Discharges 2 | . . 2 Data Loss (major) 2 | . . 2 Overload Shots . | . . . Overflow Damage 82 | . . 82 Projectiles 7 | . . 7 Explosions 75 | . . 75 Melee . | . . . Knockbacks 1 | . . 1 Impact 1 | . . 1 Kinetic . | . . . Secondary . | . . . Self-Inflicted Damage 168 | . . 168 Shots 2 | . . 2 Rammed 4 | . . 4 Targets Rammed 11 | . . 11 Kicked 7 | . . 7 Crushed . | . . . Highest Temperature 572 | . 135 572 Average Temperature 108 | . 60 114 Received Heat Transfer 828 | . 33 795 Effects 4 | . . 4 Energy Bleed 1 | . . 1 Interference 1 | . . 1 Damage (core) 2 | . . 2 Siege Activations . | . . . Martial Activations . | . . . Shielding Activations . | . . . Robots Disrupted . | . . . Combat Hostiles . | . . . Robots Corrupted . | . . . Combat Hostiles . | . . . Parts Fried . | . . . Impact Corruptions . | . . . Robots Melted . | . . . Combat Hostiles . | . . . Parts Melted 9 | . 2 7 Heat Transferred 4627 | . 481 4146 Parts Sabotaged . | . . . Parts Stolen . | . . . Parts Stripped . | . . . Power Chain Reactions . | . . . Alert | -11 -10 -9 ------- Run | Yrd Mat Mat Maximum Alert Level . | . . . Low Security (%) 100 | 100 100 100 Level 1 . | . . . Level 2 . | . . . Level 3 . | . . . Level 4 . | . . . Level 5 . | . . . High Security . | . . . Max Security . | . . . Peak Influence 156 | . 70 156 Initial 3 | . . 3 Average 60 | . 23 70 Influence Increases 662 | . 90 572 Destroy 0b10 Robot/C 420 | . 80 340 Destroy 0b10 Robot/NC 65 | . . 65 Destroy Leader 94 | . 10 84 Disable Machine 30 | . . 30 Destroy Structure 38 | . . 38 Lose Combat Pursuer 15 | . . 15 Influence Decreases 633 | . 80 553 Entered New Map 7 | . . 7 Time Decay 496 | . 80 416 Lost Part 130 | . . 130 Squads Dispatched 3 | . . 3 Investigation . | . . . Extermination . | . . . Reinforcement 3 | . . 3 Assault . | . . . Garrison . | . . . Intercept . | . . . Searches Triggered . | . . . Construction Impeded 1 | . . 1 Haulers Reinforced . | . . . Active Scanning Responses . | . . . Cargo Convoy Interrupts . | . . . Stealth | -11 -10 -9 --------- Run | Yrd Mat Mat Distress Signals 2 | . 1 1 Communications Jammed . | . . . Distress Signals . | . . . Times Spotted 36 | . 7 29 Peak Tracking Total 7 | . 4 7 Tactical Retreats 5 | . 4 1 ECM-based Alert Blocks 7 | . 7 . Traps | -11 -10 -9 ------- Run | Yrd Mat Mat Traps Triggered 1 | . . 1 Indirectly . | . . . Trap Hack Attempts . | . . . Triggered . | . . . Disarmed . | . . . Reprogrammed . | . . . Reused . | . . . Traps Extracted . | . . . Installed . | . . . Triggered . | . . . Machines | -11 -10 -9 ---------- Run | Yrd Mat Mat Machines Disabled 2 | . . 2 Max in Single Turn 2 | . . 2 Machines Repaired . | . . . Machines Dismantled . | . . . Machines Sabotaged . | . . . Overloaded Fab Kills . | . . . Hacking | -11 -10 -9 --------- Run | Yrd Mat Mat Machines Accessed 2 | . 1 1 Terminals 2 | . 1 1 Fabricators . | . . . Repair Stations . | . . . Recycling Units . | . . . Scanalyzers . | . . . Garrison Access . | . . . Total Hacks 4 | . 2 2 Successful . | . . . Failed 4 | . 2 2 Catastrophic . | . . . Database Lockouts . | . . . Manual . | . . . Terminals 4 | . 2 2 Fabricators . | . . . Repair Stations . | . . . Recycling Units . | . . . Scanalyzers . | . . . Garrison Access . | . . . Terminal Hacks . | . . . Fabricator Hacks . | . . . Repair Station Hacks . | . . . Recycling Unit Hacks . | . . . Scanalyzer . | . . . Garrison Access Hacks . | . . . Unauthorized Hacks . | . . . Terminals . | . . . Fabricators . | . . . Repair Stations . | . . . Recycling Units . | . . . Scanalyzers . | . . . Garrison Access . | . . . Data Cores Recovered . | . . . Used . | . . . Hacking Detections 1 | . . 1 Full Trace Events . | . . . Feedback Events . | . . . Feedback Blocked . | . . . Robot Schematics Acquired . | . . . Robots Built . | . . . Authchips . | . . . Time . | . . . Total Robot Build Rating . | . . . Part Schematics Acquired . | . . . Parts Built . | . . . Authchips . | . . . Time . | . . . Total Part Build Rating . | . . . Part Studies Acquired . | . . . Parts Repaired . | . . . Time . | . . . Parts Recycled . | . . . Recycled Matter . | . . . Retrieved Matter . | . . . Retrieved Components . | . . . Parts Scanalyzed . | . . . Part Schematics Acquired . | . . . Parts Damaged . | . . . Bothacking | -11 -10 -9 ------------ Run | Yrd Mat Mat Used RIF Installer . | . . . Robots Hacked . | . . . Non-combat . | . . . Combat . | . . . Robot Hacks Applied . | . . . Relay Couplers Released . | . . . Fabnet Peak Effective % . | . . . Robots Rewired . | . . . Allies Hacked . | . . . Hacks Repelled . | . . . Allies | -11 -10 -9 -------- Run | Yrd Mat Mat Total Allies . | . . . Largest Group . | . . . Highest-Rated Group . | . . . Highest-Rated Ally . | . . . Total Orders . | . . . Ally Attacks . | . . . Total Damage . | . . . Kills . | . . . Allies Corrupted . | . . . Allies Melted . | . . . Intel | -11 -10 -9 ------- Run | Yrd Mat Mat Active Infowar (turns) 302 | . 212 90 ECM 302 | . 212 90 Robot Analysis Total . | . . . Derelict Logs Recovered . | . . . Drone Launches . | . . . Drone Recoveries . | . . . Exploration | -11 -10 -9 ------------- Run | Yrd Mat Mat Turns Passed 1682 | 82 223 1377 Spaces Moved 1015 | 60 145 810 Core 41 | 5 . 36 Treads . | . . . Legs 974 | 55 145 774 Wheels . | . . . Hover . | . . . Flight . | . . . Fastest Speed 50 | 50 120 50 Average Speed 119 | 120 120 119 Slowest Speed 200 | 200 120 200 Overloaded Moves . | . . . Propulsion Burnouts . | . . . Robots Hopped . | . . . Potential Cave-ins . | . . . Cave-ins Triggered . | . . . Exploration Rate (%) 25 | 4 27 44 Regions Visited 2 Branch Regions . Pre-discovered Areas . | . . . Known Exits Taken . | . . . Unknown Exits Taken 2 | 1 1 . Scrap Searched . | . . . Spaces Dug . | . . . Terrain Destroyed 44 | . . 44 Melee . | . . . Projectile . | . . . AOE 44 | . . 44 Terrain Rammed . | . . . Walls Destroyed . | . . . Machines Disabled . | . . . Actions | -11 -10 -9 --------- Run | Yrd Mat Mat Total 1318 | 67 179 1072 Wait 80 | . 23 57 Move 1013 | 59 144 810 Hop . | . . . Pick Up 34 | . 4 30 Fast Attach 27 | 7 1 19 Attach 18 | . . 18 Detach 5 | 1 . 4 Swap 12 | . . 12 Drop 16 | . . 16 Fire 102 | . 7 95 Melee . | . . . Ram 4 | . . 4 Kick 7 | . . 7 Crush . | . . . Escape Stasis . | . . . Rewire . | . . . Trap . | . . . Miscellaneous . | . . . Route ------- -11/Scrapyard -10/Materials -9/Materials (discovered 1 exit: [*Mat]) History --------- Turn | Location | Event 12 | -11/Scrapyard | Discovered new exit (range 15) 83 | -11/Scrapyard | Entered Materials 302 | -10/Materials | Discovered new exit (range 4) 305 | -10/Materials | Build established: Mutant 306 | -10/Materials | Entered another Materials area 306 | -9/Materials | Evolved 2 slots: Propulsion x1, Utility x1 851 | -9/Materials | Released all parts (8) 880 | -9/Materials | Discovered new exit (range 15) 1133 | -9/Materials | Released all parts (8) 1660 | -9/Materials | Core integrity fell below 50% 1682 | -9/Materials | Core integrity fell below 20% 1684 | -9/Materials | Core melted Last Messages --------------- Trooper. 01656_ Carbon-fiber Leg destroyed. 01659_ Aluminum Leg destroyed. 01660_ G-47 Trooper destroyed. 01665_ K-01 Serf collects debris. 01666_ Aluminum Leg destroyed. 01668_ K-01 Serf collects debris. 01670_ G-34 Mercenary destroyed. 01670_ Switching to secondary target: G-34 Mercenary. 01671_ K-01 Serf collects debris. 01672_ Aluminum Leg destroyed. 01677_ K-01 Serf collects debris. 01678_ Overheating: System interference. 01678_ Particle Gun temporarily disabled. 01680_ Aluminum Leg destroyed. 01680_ K-01 Serf collects debris. 01682_ Overheating: Core damaged (-68). 01683_ Med. Laser destroyed. 01684_ Overheating: Core damaged (-48). Map ----- +----------------------------------------------------+ | ????????????????# #?????????????????????????? | | ????????????????# #?????????????????????????? | | ????????????##### ##########????????????????? | | ############# # # #????????????????? | | T + "T" # ########?????????? | | # # # ## =#?????????? | | ## """ ########+### ## #?????????? | | ?# % """ # # #?# ## #########?? | | ?# """ # """ # #?# ## """ # #?? | | ?# + """ # #?# ## """ # #?? | | ?# # """ # #?# ## """ # #?? | | ?# """ # # #?# ## # #?? | | ?# """ # # #?####+########+### #?? | | ?# """ ######## ##### # #?? | | ?# + #?? | | ?# ############ # #?? | | ?# #??????????# = # #?? | | ?# #??????????# # #?? | | ?# #??????????# = # #?? | | ?# #??????????# ^ #########?? | | ?# [ #??????????+ #????????? | | ?# ! #??????????# #????????? | | ?# #??????????# ########?? | | ## % #?????######## ^ # T #?? | | #####+####?????# # # #?? | | +#### *% #?????#"" @# # """ #?? | | # ! ! #?????#"Y k/[ + """ #?? | | # = = #?????#"" !#= # """ #?? | | # ! = #?????# ggg# # #?? | | # = #?????# + ########?? | | # """ #?????#################### #????????? | | # """ #?????????????????# # #######??? | | # """ #?????????????????# / | | # #?????????????????# # ####??? | | ##########?????????????????# # #?????? | | #??????????????????????????# ?# +?????? | | #??????????????????????????# ?######?????? | | #??????????????????????????#/###?????????????? | | #####??????????????????????????#?????????????????? | | ?????????????????????????????????????????????????? | | ?????????????????????????????????????????????????? | | ?????????????????????????????????????????????????? | | ?????????????????????????????????????????????????? | | ?????????????##??????????????????????????????????? | | ????????????# ???????????????????????????????????? | | ?????????? ???????????????????????????????????? | | ??????????? ????????????????????????????????????? | | ?????????? ?????????????????????????????????????? | | ?????????? #?????????????????????????????????????? | | ????????? #?????????????????????????????????????? | +----------------------------------------------------+ Best States ------------- Heat Dissipation 38 Energy Generation 14 Energy Capacity 280 Matter Stores 300 Matter Capacity 300 Sight Range 16 Terrain Scan Density 85 ECM Strength 1 Armor Coverage 375 Evasion (%) 55 Targeting Accuracy 12 Item Schematics ----------------- None Robot Schematics ------------------ None Fabricated ------------ Nothing Repaired ---------- Nothing Studied --------- None Alien Tech Used ----------------- None Achievements -------------- A Problem For Future Me Challenges ------------ None Game ------ Seed TiamatSeismicCrosscalibrator Manual? 0 Play Time 00:41:37 Cumulative 2.8 hours Start 2026.09.13 @ 21:55:37 End 2026.09.13 @ 22:58:01 Sessions 1 Manual Loads 0 Difficulty Rogue Special Mode None Game No. 9 Rogue 6 Adventurer 0 Explorer 3 Win Type - Total 0 Types 0/0/0/0/0/0/0/0/0/0 Lore% 0 Gallery% 3 Achievement% 4 Wizard Run 0 Options --------- Layout 1 ASCII 0 Keyboard 1 Movement Vi Keybinds 0 Fullscreen 1 Font 16/SmallcapsGlow Map View 50x35 Zoom Use 33% Tactical HUD 1 Map Filters NONE Filters NONE Steam SD RUN: a73832b9-51df-43ec-b6c2-47a55c03dd9f